fUST/lending_fUST_20241221
["ID","MTS","AMOUNT","RATE_DAILY","PERIOD"]
[346150039,1734752843860,-500.0,0.00019718,2]
[346150040,1734752843881,-500.0,0.00019718,2]
[346150041,1734752843903,-500.0,0.00019718,2]
[346150042,1734752843924,-500.0,0.00019718,2]
[346150043,1734752843945,-500.0,0.00019718,2]
[346150044,1734752843967,-500.0,0.00019718,2]
[346150045,1734752843988,-500.0,0.00019719,2]
[346150046,1734752844011,-500.0,0.00019719,2]
[346150047,1734752844032,-500.0,0.00019719,2]
[346150048,1734752844055,-500.0,0.00019719,2]
[346150049,1734752844078,-500.0,0.00019719,2]
[346150050,1734752844099,-500.0,0.00019719,2]
[346150051,1734752844121,-1368.26,0.00019719,2]
[346150052,1734752844142,-500.0,0.00019719,2]
[346150053,1734752844166,-11446.01069046,0.00019719,2]
[346150054,1734752846237,-203.90130823,0.00019719,2]
[346150055,1734752849779,-259.38625588,0.00019718,2]
[346150056,1734752850139,-240.61374412,0.00019718,2]
[346150057,1734752850162,-151.23800131,0.00019719,2]
[346150058,1734752850185,-583.3692499,0.00019719,2]
[346150059,1734752957119,-300.0,0.00019717,2]
[346150060,1734752957141,-500.0,0.00019718,2]
[346150061,1734752957163,-500.0,0.00019718,2]
[346150062,1734752957185,-1311.25,0.00019718,2]
[346150063,1734752957209,-500.0,0.00019718,2]
[346150064,1734752957231,-500.0,0.00019718,2]
[346150065,1734752957252,-500.0,0.00019718,2]
[346150066,1734752957273,-500.0,0.00019718,2]
[346150067,1734752957295,-500.0,0.00019718,2]
[346150068,1734752957317,-11309.44,0.00019718,2]
[346150069,1734752957338,-552.37,0.00019718,2]
[346150070,1734752957360,-500.0,0.00019718,2]
[346150071,1734752957382,-761.72,0.00019718,2]
[346150072,1734752957403,-594.43822785,0.00019718,2]
[346150073,1734752957424,-555.79395657,0.00019718,2]
[346150074,1734752957445,-500.0,0.00019718,2]
[346150075,1734752957466,-353.30234985,0.00019718,2]
[346150076,1734752957487,-500.0,0.00019718,2]
[346150077,1734752957509,-1469.0,0.00019718,2]
[346150078,1734752957530,-1266.97,0.00019718,2]
[346150079,1734752957552,-501.33995208,0.00019718,2]
[346150080,1734752957573,-500.0,0.00019718,2]
[346150081,1734752957806,-500.0,0.00019718,2]
[346150082,1734752957831,-500.0,0.00019718,2]
[346150083,1734752957857,-200.0,0.00019718,2]
[346150084,1734752957879,-500.0,0.00019718,2]
[346150085,1734752957903,-500.0,0.00019718,2]
[346150086,1734752957924,-500.0,0.00019718,2]
[346150087,1734752957945,-500.0,0.00019718,2]
[346150088,1734752957968,-513.12,0.00019718,2]
[346150089,1734752957989,-500.0,0.00019718,2]
[346150090,1734752958013,-779.87,0.00019718,2]
[346150091,1734752958034,-500.0,0.00019718,2]
[346150092,1734752958056,-502.69489065,0.00019718,2]
[346150093,1734752958077,-502.09096987,0.00019718,2]
[346150094,1734752958099,-500.0,0.00019718,2]
[346150095,1734752958122,-3274.58,0.00019718,2]
[346150096,1734752958143,-501.18299814,0.00019718,2]
[346150097,1734752958165,-500.0,0.00019718,2]
[346150098,1734752958190,-500.0,0.00019718,2]
[346150099,1734752958213,-500.0,0.00019718,2]
[346150100,1734752958234,-630.87821133,0.00019718,2]
[346150101,1734752958255,-500.0,0.00019718,2]
[346150102,1734752958278,-500.0,0.00019719,2]
[346150103,1734752958300,-368.85,0.00019719,2]
[346150104,1734752958322,-698.15,0.00019719,2]
[346150105,1734752958344,-500.0,0.00019719,2]
[346150106,1734752958368,-7185.7,0.00019719,2]
[346150107,1734752958389,-509.46506452,0.00019719,2]
[346150108,1734752958412,-1962.3,0.00019719,2]
[346150109,1734752958435,-2887.36,0.00019719,2]
[346150110,1734752958457,-500.0,0.00019719,2]
[346150111,1734752958478,-290.7945099,0.00019719,2]
[346150112,1734752958501,-752.02,0.00019719,2]
[346150113,1734752958524,-1472.74,0.00019719,2]
[346150114,1734752958546,-1450.08,0.00019719,2]
[346150115,1734752958569,-4590.65,0.00019719,2]
[346150116,1734752958591,-500.0,0.00019719,2]
[346150117,1734752958614,-513.70173226,0.00019719,2]
[346150118,1734752958636,-2030.82,0.00019719,2]
[346150119,1734752958658,-500.0,0.00019719,2]
[346150120,1734752958680,-1303.91,0.00019719,2]
[346150121,1734752958703,-500.0,0.00019719,2]
[346150122,1734752958725,-1679.96,0.00019719,2]
[346150123,1734752958753,-500.0,0.00019719,2]
[346150124,1734752958774,-500.43209245,0.00019719,2]
[346150125,1734752958796,-578.70492895,0.00019719,2]
[346150126,1734752958826,-830.96,0.00019719,2]
[346150127,1734752958849,-795.75,0.00019719,2]
[346150128,1734752958875,-9275.47737932,0.00019719,2]
[346150129,1734752971133,-500.0,0.00019718,2]
[346150130,1734752971155,-500.0,0.00019718,2]
[346150131,1734752971176,-500.0,0.00019718,2]
[346150132,1734752971198,-14852.74262068,0.00019719,2]
[346150133,1734752971222,-500.0,0.00019719,2]
[346150134,1734752971244,-500.0,0.00019719,2]
[346150135,1734752971267,-500.0,0.00019719,2]
[346150136,1734752971289,-2454.11,0.00019719,2]
[346150137,1734752971311,-11767.49,0.00019719,2]
[346150138,1734752971332,-3072.74,0.00019719,2]
[346150139,1734752971355,-500.0,0.00019719,2]
[346150140,1734752971377,-500.0,0.00019719,2]
[346150141,1734752971398,-905.73,0.00019719,2]
[346150142,1734752971422,-500.0,0.00019719,2]
[346150143,1734752971444,-500.0,0.0001972,2]
[346150144,1734752971464,-500.0,0.0001972,2]
[346150145,1734752971485,-500.0,0.0001972,2]
[346150146,1734752971505,-500.0,0.0001972,2]
[346150147,1734752971527,-500.0,0.0001972,2]
[346150148,1734752971548,-662.6,0.0001972,2]
[346150149,1734752971568,-1001.34,0.0001972,2]
[346150150,1734752971589,-500.0,0.0001972,2]
[346150151,1734752971610,-1106.73,0.0001972,2]
[346150152,1734752971631,-500.0,0.0001972,2]
[346150153,1734752971652,-502.11522854,0.0001972,2]
[346150154,1734752971673,-1109.23,0.0001972,2]
[346150155,1734752971694,-503.25938619,0.0001972,2]
[346150156,1734752971715,-502.19973607,0.0001972,2]
[346150157,1734752971735,-500.805849,0.0001972,2]
[346150158,1734752971756,-1266.36,0.0001972,2]
[346150159,1734752971776,-501.11788203,0.0001972,2]
[346150160,1734752971797,-500.0,0.0001972,2]
[346150161,1734752971822,-503.08439298,0.0001972,2]
[346150162,1734752971842,-500.0,0.0001972,2]
[346150163,1734752971864,-1109.65620451,0.0001972,2]
[346150174,1734753032686,-175.47497564,0.0001962,2]
[346150175,1734753032696,-175.47497563,0.0001966,2]
[346150177,1734753032705,-175.47497563,0.000197,2]
[346150179,1734753032714,-1602.35,0.00019717,2]
[346150181,1734753032723,-300.0,0.00019717,2]
[346150182,1734753032732,-300.0,0.00019717,2]
[346150183,1734753032741,-500.0,0.00019717,2]
[346150184,1734753032751,-433.60179255,0.00019717,2]
[346150185,1734753032760,-970.25,0.00019717,2]
[346150186,1734753032769,-500.0,0.00019718,2]
[346150187,1734753032779,-500.0,0.00019718,2]
[346150188,1734753032788,-500.98076489,0.00019718,2]
[346150189,1734753032797,-489.80847772,0.00019718,2]
[346150190,1734753032806,-500.0,0.00019718,2]
[346150191,1734753032816,-549.79,0.00019718,2]
[346150192,1734753032828,-500.0,0.00019718,2]
[346150193,1734753032837,-6886.3,0.00019718,2]
[346150194,1734753032847,-460.59359364,0.00019718,2]
[346150195,1734753032856,-526.26,0.00019718,2]
[346150196,1734753032867,-502.67554073,0.00019718,2]
[346150197,1734753032876,-500.0,0.00019718,2]
[346150198,1734753032885,-500.0,0.00019718,2]
[346150199,1734753032895,-1880.54,0.00019718,2]
[346150200,1734753032905,-216.13367757,0.00019718,2]
[346150201,1734753033170,-283.86632243,0.00019718,2]
[346150202,1734753033182,-501.14219399,0.00019718,2]
[346150203,1734753033192,-500.94754251,0.00019718,2]
[346150204,1734753033201,-500.0,0.00019718,2]
[346150205,1734753033211,-391.75751548,0.00019718,2]
[346150230,1734753038312,-2375.29248452,0.00019718,2]
[346150232,1734753038327,-500.0,0.00019718,2]
[346150234,1734753038339,-500.0,0.00019718,2]
[346150236,1734753038348,-500.0,0.00019718,2]
[346150238,1734753038358,-500.0,0.00019718,2]
[346150240,1734753038368,-500.0,0.00019719,2]
[346150242,1734753038377,-4821.08,0.00019719,2]
[346150244,1734753038387,-4821.08,0.00019719,2]
[346150246,1734753038396,-500.0,0.00019719,2]
[346150248,1734753038406,-631.16,0.00019719,2]
[346150250,1734753038418,-500.0,0.00019719,2]
[346150252,1734753038428,-6321.36,0.00019719,2]
[346150254,1734753038437,-500.0,0.00019719,2]
[346150256,1734753038447,-500.0,0.00019719,2]
[346150258,1734753038457,-3247.36,0.00019719,2]
[346150260,1734753038466,-500.0,0.00019719,2]
[346150262,1734753038475,-311.96328115,0.00019719,2]
[346150264,1734753038485,-1190.72379549,0.0001972,2]
[346150266,1734753038494,-1153.85,0.0001972,2]
[346150268,1734753038503,-500.0,0.0001972,2]
[346150270,1734753038513,-537.63,0.0001972,2]
[346150272,1734753038522,-1303.32,0.0001972,2]
[346150274,1734753038532,-500.0,0.0001972,2]
[346150276,1734753038541,-2834.89,0.0001972,2]
[346150278,1734753038550,-1606.92,0.0001972,2]
[346150280,1734753038559,-746.5,0.0001972,2]
[346150282,1734753038569,-500.0,0.0001972,2]
[346150284,1734753038578,-500.0,0.0001972,2]
[346150286,1734753038587,-1188.63,0.0001972,2]
[346150288,1734753038597,-1773.34,0.0001972,2]
[346150289,1734753038606,-3120.6,0.0001972,2]
[346150290,1734753038616,-500.0,0.0001972,2]
[346150291,1734753038625,-764.56,0.0001972,2]
[346150292,1734753038635,-1188.98,0.0001972,2]
[346150293,1734753038644,-1733.24,0.0001972,2]
[346150294,1734753038653,-583.03,0.0001972,2]
[346150296,1734753038664,-2501.85,0.0001972,2]
[346150298,1734753038673,-6959.93,0.0001972,2]
[346150300,1734753038682,-1942.51,0.0001972,2]
[346150302,1734753038691,-500.0,0.0001972,2]
[346150304,1734753038700,-1262.41,0.0001972,2]
[346150306,1734753038710,-2825.06,0.0001972,2]
[346150308,1734753038719,-500.0,0.0001972,2]
[346150310,1734753038728,-778.78416488,0.0001972,2]
[346150321,1734753038831,-2196.08583512,0.0001972,2]
[346150323,1734753038841,-561.0,0.0001972,2]
[346150326,1734753038851,-500.0,0.0001972,2]
[346150327,1734753038860,-2215.42,0.0001972,2]
[346150329,1734753038870,-500.0,0.0001972,2]
[346150332,1734753038879,-2936.60875648,0.0001972,2]
[346150368,1734753042009,-2220.77124352,0.0001972,2]
[346150369,1734753042019,-1378.35230201,0.0001972,2]
[346150388,1734753043475,-500.0,0.00019718,2]
[346150389,1734753043485,-292.00769799,0.0001972,2]
[346150390,1734753043495,-889.61,0.0001972,2]
[346150391,1734753043504,-3890.39,0.0001972,2]
[346150392,1734753043514,-500.0,0.0001972,2]
[346150393,1734753043523,-3679.29,0.0001972,2]
[346150394,1734753043533,-8855.35025036,0.0001972,2]
[346150395,1734753043899,-121.82513521,0.0001972,2]
[346150401,1734753047366,-22.65570091,0.00019718,2]
[346150402,1734753047416,-20.98377423,0.00019718,2]
[346150403,1734753047456,-1247.4097281,0.00019718,2]
[346150409,1734753358284,157.965618,0.00013973,2]
[346150413,1734754039135,-179.532,0.00019,2]
[346150414,1734754039355,-175.0568922,0.00019178,2]
[346150415,1734754039379,-175.47497563,0.00019616,2]
[346150416,1734754039400,-182.86245964,0.00019617,2]
[346150417,1734754039424,-666.0,0.00019622,2]
[346150418,1734754039446,-175.47497563,0.00019687,2]
[346150419,1734754039467,-2294.82541766,0.00019692,2]
[346150420,1734754039489,-300.0,0.00019714,2]
[346150421,1734754039510,-1541.34,0.00019715,2]
[346150422,1734754039533,-281.30118491,0.00019715,2]
[346150423,1734754039555,-500.0,0.00019715,2]
[346150424,1734754039576,-4104.64072506,0.00019715,2]
[346150425,1734754042090,-325.56807108,0.00019715,2]
[346150426,1734754042154,-960.02466271,0.00019715,2]
[346150427,1734754146128,-666.0,0.00019618,2]
[346150428,1734754146150,-1072.35744249,0.000197,2]
[346150429,1734754151342,-1207.4408829,0.000197,2]
[346150430,1734754151363,-300.0,0.00019714,2]
[346150431,1734754151384,-300.0,0.00019714,2]
[346150432,1734754151405,-337.80790237,0.00019715,2]
[346150433,1734754167087,-162.68,0.00019615,2]
[346150434,1734754172090,-12.79497563,0.00019615,2]
[346150435,1734754172113,-871.32863878,0.00019715,2]
[346150436,1734754172134,-468.58401062,0.00019715,2]
[346150451,1734754232844,-300.0,0.00019714,2]
[346150452,1734754232853,-300.0,0.00019714,2]
[346150453,1734754232862,-122.59937,0.00019714,2]
[346150454,1734754232872,-377.40063,0.00019714,2]
[346150455,1734754232882,-1535.58,0.00019714,2]
[346150456,1734754232891,-500.0,0.00019715,2]
[346150457,1734754232901,-875.61655365,0.00019715,2]
[346150518,1734754238671,-230.15344635,0.00019715,2]
[346150520,1734754238681,-945.01417929,0.00019715,2]
[346150524,1734754238731,-311.60582071,0.00019715,2]
[346150526,1734754238740,-11062.36,0.00019715,2]
[346150528,1734754238750,-500.0,0.00019715,2]
[346150529,1734754238760,-729.98,0.00019715,2]
[346150530,1734754238771,-24621.73,0.00019715,2]
[346150531,1734754238780,-500.0,0.00019715,2]
[346150532,1734754238789,-500.0,0.00019715,2]
[346150533,1734754238799,-1477.12,0.00019715,2]
[346150534,1734754238808,-747.37,0.00019715,2]
[346150535,1734754238818,-11277.18,0.00019715,2]
[346150536,1734754238828,-7722.56,0.00019715,2]
[346150537,1734754238837,-500.0,0.00019715,2]
[346150538,1734754238847,-1067.12,0.00019715,2]
[346150539,1734754238857,-500.0,0.00019715,2]
[346150540,1734754238867,-500.0,0.00019715,2]
[346150541,1734754238876,-604.86,0.00019715,2]
[346150542,1734754238885,-6324.39,0.00019715,2]
[346150543,1734754238895,-1782.66,0.00019715,2]
[346150544,1734754238906,-6057.97,0.00019715,2]
[346150545,1734754238915,-2866.61403289,0.00019715,2]
[346150553,1734754240635,-634.99,0.00019714,2]
[346150554,1734754240645,-245.44596711,0.00019715,2]
[346150555,1734754240656,-6824.73,0.00019715,2]
[346150556,1734754240666,-2651.76,0.00019715,2]
[346150557,1734754240866,-2990.57,0.00019715,2]
[346150558,1734754240876,-13223.23405,0.00019716,2]
[346150573,1734754246455,-502.24,0.00019715,2]
[346150574,1734754246465,-48364.82531656,0.00019716,2]
[346150576,1734754282509,157.965618,0.00013973,2]
[346150587,1734755179783,157.965618,0.00013973,2]
[346150593,1734755246113,-300.0,0.00017811,2]
[346150594,1734755246134,-681.84681243,0.00017812,2]
[346150595,1734755283117,157502.47192006,0.00025,120]
[346150597,1734755350091,-300.0,0.00018638,2]
[346150598,1734755350113,-300.0,0.00018638,2]
[346150599,1734755350133,-10121.42741742,0.00018639,2]
[346150600,1734755350155,-172.32,0.0001873,2]
[346150601,1734755350175,-1924.04566615,0.00018904,2]
[346150602,1734755350195,-10121.42741742,0.00019069,2]
[346150603,1734755350215,-175.47497563,0.00019078,2]
[346150604,1734755350236,-352.02932,0.00019141,2]
[346150605,1734755350256,-352.02932,0.00019141,2]
[346150606,1734755350277,-6060.88,0.00019178,2]
[346150607,1734755350297,-1708.38,0.00019178,2]
[346150608,1734755350319,-2541.27,0.00019178,2]
[346150609,1734755350341,-1390.55,0.00019178,2]
[346150610,1734755350362,-1059.7,0.00019178,2]
[346150611,1734755350383,-500.0,0.00019178,2]
[346150612,1734755350403,-23595.83,0.00019178,2]
[346150613,1734755350424,-500.0,0.00019178,2]
[346150614,1734755350445,-1415.57,0.00019178,2]
[346150615,1734755350466,-10807.29,0.00019178,2]
[346150616,1734755350488,-368.69045303,0.00019178,2]
[346150617,1734755356114,-131.30954697,0.00019178,2]
[346150618,1734755356136,-309.0427827,0.00019278,2]
[346150619,1734755356157,-153.0,0.00019278,2]
[346150620,1734755356177,-153.0,0.00019278,2]
[346150621,1734755356199,-162.5302165,0.00019341,2]
[346150622,1734755356220,-685.24100521,0.00019351,2]
[346150623,1734755358114,-2483.27832008,0.00019351,2]
[346150624,1734755361124,-4321.58271252,0.00019351,2]
[346150625,1734755363101,-2631.32537961,0.00019351,2]
[346150626,1734755363122,-4862.64717121,0.00019452,2]
[346150630,1734755372207,-1198.23282879,0.00019452,2]
[346150631,1734755372235,-1708.38,0.00019452,2]
[346150632,1734755372262,-2541.27,0.00019452,2]
[346150633,1734755372291,-1390.55,0.00019452,2]
[346150634,1734755372318,-1059.7,0.00019452,2]
[346150635,1734755372345,-500.0,0.00019452,2]
[346150636,1734755372372,-438.46044736,0.00019452,2]
[346150637,1734755374494,-9705.97530333,0.00019452,2]
[346151214,1734756170967,157.965618,0.00013973,2]
[346151215,1734756205213,189.83,0.00025,120]
[346151216,1734756352089,-178.27301578,0.00017698,2]
[346151217,1734756426139,-72.47698422,0.00017698,2]
[346151218,1734756426162,-89.82779024,0.00017811,2]
[346151219,1734756435122,-368.50839107,0.00017811,2]
[346151220,1734756435144,-300.0,0.00018209,2]
[346151221,1734756435166,-300.0,0.00018209,2]
[346151222,1734756435187,-10121.42741742,0.0001821,2]
[346151223,1734756435207,-500.0,0.00018298,2]
[346151224,1734756435228,-10121.42741742,0.00018611,2]
[346151225,1734756435251,-6535.20999156,0.00018632,2]
[346151226,1734756436106,-975.88357704,0.00018632,2]
[346151227,1734756532287,50008.01545921,0.00025,120]
[346151228,1734756548079,-347.0545787,0.00018229,2]
[346151229,1734756548100,-172.205,0.0001873,2]
[346151230,1734756548120,-1924.04566615,0.00018904,2]
[346151231,1734756548139,-357.9951391,0.00018941,2]
[346151232,1734756548159,-175.47497563,0.00019078,2]
[346151233,1734756548177,-300.0,0.00019177,2]
[346151234,1734756548197,-300.0,0.00019177,2]
[346151235,1734756548216,-500.0,0.00019178,2]
[346151236,1734756548235,-500.0,0.00019178,2]
[346151237,1734756548254,-500.0,0.00019178,2]
[346151238,1734756548273,-501.12889747,0.00019178,2]
[346151239,1734756548291,-500.8124528,0.00019178,2]
[346151240,1734756548310,-515.5310795,0.00019178,2]
[346151241,1734756548329,-526.88,0.00019178,2]
[346151242,1734756548349,-151.0,0.00019178,2]
[346151243,1734756548367,-500.0,0.00019178,2]
[346151244,1734756548386,-500.0,0.00019178,2]
[346151245,1734756548405,-500.0,0.00019178,2]
[346151246,1734756548424,-500.0,0.00019178,2]
[346151247,1734756548443,-500.0,0.00019178,2]
[346151248,1734756548463,-500.0,0.00019178,2]
[346151249,1734756548481,-500.0,0.00019178,2]
[346151250,1734756548502,-501.60256352,0.00019178,2]
[346151251,1734756548523,-500.0,0.00019178,2]
[346151252,1734756548541,-500.0,0.00019178,2]
[346151253,1734756548560,-500.0,0.00019178,2]
[346151254,1734756548579,-500.0,0.00019178,2]
[346151255,1734756548598,-501.28524732,0.00019178,2]
[346151256,1734756548618,-151.0,0.00019178,2]
[346151257,1734756548639,-567.13,0.00019178,2]
[346151258,1734756548660,-500.0,0.00019178,2]
[346151259,1734756548679,-151.0,0.00019178,2]
[346151260,1734756548699,-151.0,0.00019178,2]
[346151261,1734756548719,-151.0,0.00019178,2]
[346151262,1734756548737,-504.33,0.00019178,2]
[346151263,1734756548757,-500.0,0.00019178,2]
[346151264,1734756548776,-500.0,0.00019178,2]
[346151265,1734756548795,-543.42,0.00019178,2]
[346151266,1734756548815,-500.0,0.00019178,2]
[346151267,1734756548833,-501.06909251,0.00019178,2]
[346151268,1734756548853,-500.0,0.00019178,2]
[346151269,1734756548872,-500.0,0.00019178,2]
[346151270,1734756548893,-500.0,0.00019178,2]
[346151271,1734756548913,-500.0,0.00019178,2]
[346151272,1734756548933,-500.0,0.00019178,2]
[346151273,1734756548952,-500.0,0.00019178,2]
[346151274,1734756548975,-500.0,0.00019178,2]
[346151275,1734756548995,-500.0,0.00019178,2]
[346151276,1734756549018,-500.0,0.00019178,2]
[346151277,1734756549038,-500.0,0.00019178,2]
[346151278,1734756549058,-500.96506026,0.00019178,2]
[346151279,1734756549077,-500.86023881,0.00019178,2]
[346151280,1734756549096,-500.08747341,0.00019178,2]
[346151281,1734756549116,-500.0,0.00019178,2]
[346151282,1734756549136,-500.0,0.00019178,2]
[346151283,1734756549155,-500.0,0.00019178,2]
[346151284,1734756549174,-500.0,0.00019178,2]
[346151285,1734756549194,-965.49,0.00019178,2]
[346151286,1734756549213,-501.13929893,0.00019178,2]
[346151287,1734756549232,-500.96315112,0.00019178,2]
[346151288,1734756549250,-500.0,0.00019178,2]
[346151289,1734756549271,-500.0,0.00019178,2]
[346151290,1734756549289,-511.23,0.00019178,2]
[346151291,1734756549309,-506.82,0.00019178,2]
[346151292,1734756549328,-565.09665449,0.00019178,2]
[346151293,1734756549347,-500.0,0.00019178,2]
[346151294,1734756549367,-500.0,0.00019178,2]
[346151295,1734756549386,-643.61,0.00019178,2]
[346151296,1734756549405,-151.743878,0.00019178,2]
[346151297,1734756549424,-500.85285661,0.00019178,2]
[346151298,1734756549444,-500.0,0.00019178,2]
[346151299,1734756549464,-1247.73,0.00019178,2]
[346151300,1734756549482,-500.0,0.00019178,2]
[346151301,1734756549502,-969.73,0.00019178,2]
[346151302,1734756549522,-500.0,0.00019178,2]
[346151303,1734756549542,-500.0,0.00019178,2]
[346151304,1734756549562,-500.0,0.00019178,2]
[346151305,1734756549581,-500.0,0.00019178,2]
[346151306,1734756549602,-500.0,0.00019178,2]
[346151307,1734756549622,-500.0,0.00019178,2]
[346151308,1734756549641,-500.0,0.00019178,2]
[346151309,1734756549661,-501.64699385,0.00019178,2]
[346151310,1734756549680,-500.0,0.00019178,2]
[346151311,1734756549699,-500.0,0.00019178,2]
[346151312,1734756549719,-500.0,0.00019178,2]
[346151313,1734756549738,-178.98659,0.00019178,2]
[346151314,1734756549758,-178.98659,0.00019178,2]
[346151315,1734756549778,-178.98659,0.00019178,2]
[346151316,1734756549798,-151.0,0.00019178,2]
[346151317,1734756549817,-500.0,0.00019178,2]
[346151318,1734756549838,-151.0,0.00019178,2]
[346151319,1734756549858,-151.0,0.00019178,2]
[346151320,1734756549878,-2707.35,0.00019178,2]
[346151321,1734756549898,-151.0,0.00019178,2]
[346151322,1734756549917,-151.0,0.00019178,2]
[346151323,1734756549938,-151.0,0.00019178,2]
[346151324,1734756549958,-151.0,0.00019178,2]
[346151325,1734756549981,-151.0,0.00019178,2]
[346151326,1734756550002,-151.0,0.00019178,2]
[346151327,1734756550022,-151.0,0.00019178,2]
[346151328,1734756550043,-151.0,0.00019178,2]
[346151329,1734756550064,-500.0,0.00019178,2]
[346151330,1734756550084,-500.0,0.00019178,2]
[346151331,1734756550104,-151.0,0.00019178,2]
[346151332,1734756550319,-151.0,0.00019178,2]
[346151333,1734756550340,-2850.92,0.00019178,2]
[346151334,1734756550361,-151.0,0.00019178,2]
[346151335,1734756550380,-151.0,0.00019178,2]
[346151336,1734756550400,-151.0,0.00019178,2]
[346151337,1734756550421,-151.0,0.00019178,2]
[346151338,1734756550440,-501.05111977,0.00019178,2]
[346151339,1734756550463,-193.88715729,0.00019178,2]
[346151340,1734756550485,-500.0,0.00019178,2]
[346151341,1734756550508,-500.0,0.00019178,2]
[346151342,1734756550536,-500.0,0.00019178,2]
[346151343,1734756550558,-500.0,0.00019178,2]
[346151344,1734756550579,-878.38,0.00019178,2]
[346151345,1734756550602,-640.93769776,0.00019178,2]
[346151346,1734756550621,-500.0,0.00019178,2]
[346151347,1734756550641,-500.0,0.00019178,2]
[346151348,1734756550660,-500.89455931,0.00019178,2]
[346151349,1734756550680,-500.0,0.00019178,2]
[346151350,1734756550700,-645.17,0.00019178,2]
[346151351,1734756550720,-500.0,0.00019178,2]
[346151352,1734756550741,-544.72,0.00019178,2]
[346151353,1734756550760,-501.30293119,0.00019178,2]
[346151354,1734756550783,-500.0,0.00019178,2]
[346151355,1734756550804,-500.0,0.00019178,2]
[346151356,1734756550824,-501.41466769,0.00019178,2]
[346151357,1734756550844,-500.0,0.00019178,2]
[346151358,1734756550864,-500.87976525,0.00019178,2]
[346151359,1734756550884,-501.14284593,0.00019178,2]
[346151360,1734756550904,-685.56,0.00019178,2]
[346151361,1734756550924,-500.0,0.00019178,2]
[346151362,1734756550944,-500.0,0.00019178,2]
[346151363,1734756550967,-500.0,0.00019178,2]
[346151364,1734756550987,-500.0,0.00019178,2]
[346151365,1734756551007,-500.0,0.00019178,2]
[346151366,1734756551029,-500.0,0.00019178,2]
[346151367,1734756551050,-500.0,0.00019178,2]
[346151368,1734756551071,-608.54,0.00019178,2]
[346151369,1734756551092,-500.0,0.00019178,2]
[346151370,1734756551113,-503.68819993,0.00019178,2]
[346151371,1734756551133,-500.0,0.00019178,2]
[346151372,1734756551153,-929.82,0.00019178,2]
[346151373,1734756551174,-500.0,0.00019178,2]
[346151374,1734756551194,-500.0,0.00019178,2]
[346151375,1734756551214,-536.27,0.00019178,2]
[346151376,1734756551234,-500.0,0.00019178,2]
[346151377,1734756551255,-500.0,0.00019178,2]
[346151378,1734756551279,-500.9422657,0.00019178,2]
[346151379,1734756551300,-500.0,0.00019178,2]
[346151380,1734756551322,-500.0,0.00019178,2]
[346151381,1734756551344,-520.58,0.00019178,2]
[346151382,1734756551365,-500.0,0.00019178,2]
[346151383,1734756551387,-1083.38,0.00019178,2]
[346151384,1734756551409,-500.0,0.00019178,2]
[346151385,1734756551430,-796.8,0.00019178,2]
[346151386,1734756551450,-500.0,0.00019178,2]
[346151387,1734756551468,-500.0,0.00019178,2]
[346151388,1734756551489,-500.0,0.00019178,2]
[346151389,1734756551509,-2341.3,0.00019178,2]
[346151390,1734756551531,-673.43,0.00019178,2]
[346151391,1734756551551,-500.0,0.00019178,2]